[Event "Early-Titled-Tuesday-Blitz-October-17-2023"]
[Site "Chess.com"]
[Date "2023.10.17"]
[Round "4"]
[White "Hovik_Hayrapetyan"]
[Black "wonderfultime"]
[Result "1-0"]
[WhiteElo "2799"]
[BlackElo "2974"]
[TimeControl "180+1"]
[EndTime "8:41:32 PDT"]
[Termination "Hovik_Hayrapetyan won by resignation"]

1. d4 {[%clk 0:03:00.9]} 1... d5 {[%clk 0:03:00]} 2. c4 {[%clk 0:03:00.6]} 2...
c6 {[%clk 0:03:00.5]} 3. Nf3 {[%clk 0:03:00.6]} 3... Nf6 {[%clk 0:03:00.9]} 4.
Nc3 {[%clk 0:03:01]} 4... a6 {[%clk 0:03:01.1]} 5. c5 {[%clk 0:02:56.4]} 5...
Nbd7 {[%clk 0:02:59.6]} 6. Bf4 {[%clk 0:02:55.2]} 6... Nh5 {[%clk 0:03:00.1]} 7.
Bd2 {[%clk 0:02:54.9]} 7... g6 {[%clk 0:03:00.4]} 8. g3 {[%clk 0:02:54.4]} 8...
Bg7 {[%clk 0:03:00.6]} 9. Bg2 {[%clk 0:02:54]} 9... O-O {[%clk 0:02:59.5]} 10.
O-O {[%clk 0:02:53.9]} 10... Re8 {[%clk 0:02:41.4]} 11. e4 {[%clk 0:02:43.3]}
11... dxe4 {[%clk 0:02:40]} 12. Nxe4 {[%clk 0:02:44.2]} 12... Nhf6 {[%clk
0:02:32.9]} 13. Nc3 {[%clk 0:02:41]} 13... Nf8 {[%clk 0:02:32.7]} 14. h3 {[%clk
0:02:30.5]} 14... Ne6 {[%clk 0:02:20.3]} 15. Be3 {[%clk 0:02:25.4]} 15... Nc7
{[%clk 0:02:20.8]} 16. Qd2 {[%clk 0:02:10.2]} 16... Ncd5 {[%clk 0:02:06.3]} 17.
Bh6 {[%clk 0:02:09.8]} 17... Bh8 {[%clk 0:01:57.1]} 18. Rfe1 {[%clk 0:02:07.4]}
18... a5 {[%clk 0:01:45.5]} 19. g4 {[%clk 0:01:51.1]} 19... a4 {[%clk
0:01:41.4]} 20. a3 {[%clk 0:01:46.4]} 20... b6 {[%clk 0:01:32.5]} 21. Ne5 {[%clk
0:01:43]} 21... Bb7 {[%clk 0:01:01.3]} 22. g5 {[%clk 0:01:21.5]} 22... Nh5
{[%clk 0:01:01.3]} 23. Nxd5 {[%clk 0:01:17.6]} 23... cxd5 {[%clk 0:01:01.5]} 24.
c6 {[%clk 0:01:18.1]} 24... Ba6 {[%clk 0:00:53.6]} 25. Rac1 {[%clk 0:01:02.5]}
25... Bxe5 {[%clk 0:00:50.5]} 26. Rxe5 {[%clk 0:00:37.8]} 26... e6 {[%clk
0:00:51.1]} 27. Qb4 {[%clk 0:00:24.2]} 27... Nf4 {[%clk 0:00:44.3]} 28. c7
{[%clk 0:00:21.1]} 28... Qd7 {[%clk 0:00:43.2]} 29. Qxb6 {[%clk 0:00:21]} 29...
Rec8 {[%clk 0:00:27.8]} 30. Rc6 {[%clk 0:00:16.7]} 30... Bd3 {[%clk 0:00:21.6]}
31. Qc5 {[%clk 0:00:14.8]} 31... Bf5 {[%clk 0:00:18.2]} 32. Bf1 {[%clk
0:00:13.1]} 32... Bxh3 {[%clk 0:00:16.8]} 33. Bb5 {[%clk 0:00:12.2]} 33... Ra5
{[%clk 0:00:15.1]} 34. Rd6 {[%clk 0:00:11.5]} 34... Qe7 {[%clk 0:00:10.2]} 35.
Rd8+ {[%clk 0:00:11.5]} 35... Qxd8 {[%clk 0:00:09.5]} 36. cxd8=Q+ {[%clk
0:00:10.9]} 36... Rxd8 {[%clk 0:00:10.4]} 37. Qc7 {[%clk 0:00:10.6]} 37... Raa8
{[%clk 0:00:09.2]} 38. Re3 {[%clk 0:00:10.3]} 38... Bf5 {[%clk 0:00:09]} 39.
Qxf4 {[%clk 0:00:09.4]} 1-0

[Event "Early-Titled-Tuesday-Blitz-October-17-2023"]
[Site "Chess.com"]
[Date "2023.10.17"]
[Round "4"]
[White "Smiechu"]
[Black "TigrVShlyape"]
[Result "0-1"]
[WhiteElo "2502"]
[BlackElo "2836"]
[TimeControl "180+1"]
[EndTime "8:41:32 PDT"]
[Termination "TigrVShlyape won by resignation"]

1. e4 {[%clk 0:03:00.9]} 1... d5 {[%clk 0:02:57.5]} 2. exd5 {[%clk 0:02:57.8]}
2... Qxd5 {[%clk 0:02:57]} 3. Nf3 {[%clk 0:02:57.4]} 3... Nf6 {[%clk 0:02:56.2]}
4. d4 {[%clk 0:02:57.6]} 4... c6 {[%clk 0:02:50.9]} 5. c4 {[%clk 0:02:57.4]}
5... Qa5+ {[%clk 0:02:49.6]} 6. Nc3 {[%clk 0:02:57.6]} 6... Bg4 {[%clk
0:02:48.8]} 7. Be2 {[%clk 0:02:57.4]} 7... e6 {[%clk 0:02:48.1]} 8. O-O {[%clk
0:02:56.1]} 8... Nbd7 {[%clk 0:02:48.1]} 9. h3 {[%clk 0:02:51.1]} 9... Bh5
{[%clk 0:02:42.9]} 10. Bf4 {[%clk 0:02:43]} 10... Be7 {[%clk 0:02:40.3]} 11. Ne5
{[%clk 0:02:35.9]} 11... Bxe2 {[%clk 0:02:21.4]} 12. Qxe2 {[%clk 0:02:34.6]}
12... Rd8 {[%clk 0:02:18.3]} 13. a3 {[%clk 0:02:28.2]} 13... O-O {[%clk
0:02:14.3]} 14. b4 {[%clk 0:02:26.5]} 14... Qa6 {[%clk 0:02:13.6]} 15. Rfd1
{[%clk 0:02:18.9]} 15... Rfe8 {[%clk 0:02:08.6]} 16. Nxd7 {[%clk 0:02:13]} 16...
Rxd7 {[%clk 0:02:06.6]} 17. Ne4 {[%clk 0:01:53.5]} 17... Nxe4 {[%clk 0:02:05.1]}
18. Qxe4 {[%clk 0:01:53.6]} 18... Qxc4 {[%clk 0:02:04.5]} 19. Rac1 {[%clk
0:01:51.8]} 19... Qd5 {[%clk 0:02:04]} 20. Qe2 {[%clk 0:01:43.7]} 20... Red8
{[%clk 0:02:02.9]} 21. Be3 {[%clk 0:01:42.2]} 21... Qe4 {[%clk 0:01:58]} 22. f3
{[%clk 0:01:32]} 22... Qg6 {[%clk 0:01:56.9]} 23. d5 {[%clk 0:01:26.5]} 23...
Rxd5 {[%clk 0:01:52.7]} 24. Bxa7 {[%clk 0:01:26]} 24... h5 {[%clk 0:01:46.2]}
25. Bc5 {[%clk 0:01:20.8]} 25... Bxc5+ {[%clk 0:01:45.1]} 26. bxc5 {[%clk
0:01:20.7]} 26... Qg5 {[%clk 0:01:42.1]} 27. Kh1 {[%clk 0:01:00.4]} 27... Rd2
{[%clk 0:01:38.6]} 28. Rxd2 {[%clk 0:00:58.2]} 28... Rxd2 {[%clk 0:01:37.9]} 29.
Qf1 {[%clk 0:00:58.7]} 29... Qe3 {[%clk 0:01:26.8]} 30. Qg1 {[%clk 0:00:50.4]}
30... Qxa3 {[%clk 0:01:24.5]} 31. Ra1 {[%clk 0:00:46.9]} 31... Qd3 {[%clk
0:01:16.6]} 32. Rb1 {[%clk 0:00:43.4]} 32... Qc2 {[%clk 0:01:07.8]} 33. Rc1
{[%clk 0:00:38.9]} 33... Qf5 {[%clk 0:01:05.8]} 34. Rb1 {[%clk 0:00:37.5]} 34...
Rc2 {[%clk 0:01:05.5]} 35. Rxb7 {[%clk 0:00:35.7]} 35... Qxc5 {[%clk 0:01:03.7]}
36. Qxc5 {[%clk 0:00:25.4]} 36... Rxc5 {[%clk 0:01:03.5]} 37. Rc7 {[%clk
0:00:26.1]} 37... h4 {[%clk 0:01:02.6]} 38. Kg1 {[%clk 0:00:23.4]} 38... Rc2
{[%clk 0:01:02.4]} 39. Kf1 {[%clk 0:00:22.9]} 39... g5 {[%clk 0:01:01.9]} 40.
Kg1 {[%clk 0:00:22.5]} 40... Kg7 {[%clk 0:01:02.2]} 41. Rc8 {[%clk 0:00:20.9]}
41... Kg6 {[%clk 0:01:02.3]} 42. Kf1 {[%clk 0:00:19.2]} 42... Kf5 {[%clk
0:01:02.6]} 43. Rf8 {[%clk 0:00:19.3]} 43... f6 {[%clk 0:01:02.8]} 44. Re8
{[%clk 0:00:18.8]} 44... e5 {[%clk 0:01:03]} 45. Rf8 {[%clk 0:00:18.9]} 45... c5
{[%clk 0:01:03.4]} 46. Rc8 {[%clk 0:00:19.2]} 46... c4 {[%clk 0:01:03.8]} 47.
Rc6 {[%clk 0:00:19.8]} 47... c3 {[%clk 0:01:03.9]} 48. Kg1 {[%clk 0:00:20.1]}
48... Kf4 {[%clk 0:01:03]} 49. Kh2 {[%clk 0:00:20.2]} 49... f5 {[%clk
0:01:02.5]} 50. Rc4+ {[%clk 0:00:14.3]} 50... e4 {[%clk 0:01:02.6]} 51. Rd4
{[%clk 0:00:12.2]} 51... Ke3 {[%clk 0:01:01.4]} 52. Rd5 {[%clk 0:00:09.4]} 52...
exf3 {[%clk 0:01:01.4]} 53. Rxf5 {[%clk 0:00:09.5]} 53... Rxg2+ {[%clk
0:01:01.3]} 54. Kh1 {[%clk 0:00:10]} 54... Re2 {[%clk 0:00:59.7]} 55. Rxg5
{[%clk 0:00:07.3]} 55... c2 {[%clk 0:01:00]} 56. Rc5 {[%clk 0:00:07.4]} 56...
Kd2 {[%clk 0:00:51.4]} 57. Kg1 {[%clk 0:00:06]} 57... c1=Q+ {[%clk 0:00:50.5]}
0-1

[Event "Early-Titled-Tuesday-Blitz-October-17-2023"]
[Site "Chess.com"]
[Date "2023.10.17"]
[Round "4"]
[White "GlavkonVVS"]
[Black "seopie"]
[Result "0-1"]
[WhiteElo "2574"]
[BlackElo "2848"]
[TimeControl "180+1"]
[EndTime "8:41:33 PDT"]
[Termination "seopie won by resignation"]

1. Nf3 {[%clk 0:02:42.7]} 1... Nf6 {[%clk 0:02:59.3]} 2. c4 {[%clk 0:02:42.5]}
2... b6 {[%clk 0:02:57.8]} 3. Nc3 {[%clk 0:02:43]} 3... Bb7 {[%clk 0:02:57.6]}
4. g3 {[%clk 0:02:43.7]} 4... g6 {[%clk 0:02:51.9]} 5. Bg2 {[%clk 0:02:43.7]}
5... Bg7 {[%clk 0:02:52.6]} 6. O-O {[%clk 0:02:44]} 6... O-O {[%clk 0:02:53.2]}
7. d4 {[%clk 0:02:42.1]} 7... e6 {[%clk 0:02:53.4]} 8. Bg5 {[%clk 0:02:25.8]}
8... h6 {[%clk 0:02:52.3]} 9. Bxf6 {[%clk 0:02:24.7]} 9... Bxf6 {[%clk 0:02:50]}
10. e4 {[%clk 0:02:24.8]} 10... d6 {[%clk 0:02:50]} 11. Qd2 {[%clk 0:02:20.1]}
11... Bg7 {[%clk 0:02:49.9]} 12. Rfe1 {[%clk 0:02:01.3]} 12... Nd7 {[%clk
0:02:50]} 13. Rad1 {[%clk 0:01:56.2]} 13... Re8 {[%clk 0:02:49.1]} 14. a3 {[%clk
0:01:51]} 14... a6 {[%clk 0:02:47.4]} 15. b4 {[%clk 0:01:50.7]} 15... Qe7 {[%clk
0:02:47.4]} 16. h4 {[%clk 0:01:43]} 16... Rad8 {[%clk 0:02:43]} 17. d5 {[%clk
0:01:41.8]} 17... h5 {[%clk 0:02:24.1]} 18. Nd4 {[%clk 0:01:33.1]} 18... e5
{[%clk 0:02:18.4]} 19. Nc6 {[%clk 0:01:31.7]} 19... Bxc6 {[%clk 0:02:18.4]} 20.
dxc6 {[%clk 0:01:32.1]} 20... Nf6 {[%clk 0:02:19.3]} 21. Nd5 {[%clk 0:01:29.8]}
21... Nxd5 {[%clk 0:02:19.4]} 22. cxd5 {[%clk 0:01:30.4]} 22... Ra8 {[%clk
0:02:15.9]} 23. a4 {[%clk 0:01:29.3]} 23... a5 {[%clk 0:02:15.6]} 24. Rb1 {[%clk
0:01:16.5]} 24... axb4 {[%clk 0:02:15.3]} 25. Rxb4 {[%clk 0:01:16.7]} 25... Ra5
{[%clk 0:02:14.7]} 26. Bf1 {[%clk 0:01:12.8]} 26... Kh7 {[%clk 0:02:11.5]} 27.
Qc2 {[%clk 0:01:08.6]} 27... Bh6 {[%clk 0:02:03.6]} 28. Kg2 {[%clk 0:01:02.3]}
28... Rea8 {[%clk 0:02:03.1]} 29. Bb5 {[%clk 0:01:01]} 29... Rf8 {[%clk
0:01:57.4]} 30. Bd3 {[%clk 0:00:59.3]} 30... Kg7 {[%clk 0:01:56.7]} 31. Rb5
{[%clk 0:00:50.6]} 31... Ra7 {[%clk 0:01:51.3]} 32. a5 {[%clk 0:00:43.6]} 32...
Rxa5 {[%clk 0:01:50.6]} 33. Rxa5 {[%clk 0:00:43.6]} 33... bxa5 {[%clk
0:01:51.5]} 34. Ra1 {[%clk 0:00:43.9]} 34... Ra8 {[%clk 0:01:45.3]} 35. Qb3
{[%clk 0:00:38.7]} 35... Bd2 {[%clk 0:01:34.1]} 36. Qb7 {[%clk 0:00:33.9]} 36...
Qd8 {[%clk 0:01:34.1]} 37. Ra4 {[%clk 0:00:29.4]} 37... Rb8 {[%clk 0:01:31.8]}
38. Qa6 {[%clk 0:00:29.3]} 38... Rb2 {[%clk 0:01:26]} 39. Rc4 {[%clk 0:00:21.8]}
39... Bb4 {[%clk 0:01:16.4]} 40. Rc2 {[%clk 0:00:21]} 40... Rb3 {[%clk
0:01:15.4]} 41. Qc4 {[%clk 0:00:19.6]} 41... Ra3 {[%clk 0:01:15.3]} 42. Ra2
{[%clk 0:00:19.2]} 42... Rc3 {[%clk 0:01:14.7]} 43. Qa6 {[%clk 0:00:19]} 43...
g5 {[%clk 0:01:10.2]} 44. hxg5 {[%clk 0:00:18.9]} 44... Qxg5 {[%clk 0:01:10.3]}
45. Be2 {[%clk 0:00:18.6]} 45... h4 {[%clk 0:01:10.4]} 46. Bf3 {[%clk
0:00:14.8]} 46... h3+ {[%clk 0:01:09]} 47. Kxh3 {[%clk 0:00:14.5]} 47... Rxf3
{[%clk 0:01:09.1]} 48. Qc8 {[%clk 0:00:13.9]} 48... Be1 {[%clk 0:00:51.6]} 49.
Kg2 {[%clk 0:00:11.2]} 49... Rf6 {[%clk 0:00:51.5]} 50. Re2 {[%clk 0:00:08.4]}
50... Bb4 {[%clk 0:00:50.4]} 51. Qxc7 {[%clk 0:00:06.8]} 51... Qg4 {[%clk
0:00:50.4]} 52. Re3 {[%clk 0:00:06.8]} 52... Bc5 {[%clk 0:00:49.7]} 0-1

[Event "Early-Titled-Tuesday-Blitz-October-17-2023"]
[Site "Chess.com"]
[Date "2023.10.17"]
[Round "4"]
[White "Djager97"]
[Black "venturov"]
[Result "0-1"]
[WhiteElo "2618"]
[BlackElo "2457"]
[TimeControl "180+1"]
[EndTime "8:41:36 PDT"]
[Termination "venturov won on time"]

1. e4 {[%clk 0:03:00.9]} 1... c5 {[%clk 0:03:00.1]} 2. Nf3 {[%clk 0:03:00.9]}
2... e6 {[%clk 0:03:00.4]} 3. g3 {[%clk 0:03:00.6]} 3... Nc6 {[%clk 0:02:59.8]}
4. Bg2 {[%clk 0:03:00.8]} 4... Nf6 {[%clk 0:03:00.3]} 5. Nc3 {[%clk 0:02:59.4]}
5... d5 {[%clk 0:02:59.4]} 6. exd5 {[%clk 0:03:00.3]} 6... Nxd5 {[%clk
0:03:00.1]} 7. Nxd5 {[%clk 0:02:53.1]} 7... exd5 {[%clk 0:02:54.8]} 8. O-O
{[%clk 0:02:51]} 8... Be7 {[%clk 0:02:55]} 9. d4 {[%clk 0:02:50.8]} 9... c4
{[%clk 0:02:54.8]} 10. b3 {[%clk 0:02:47.8]} 10... cxb3 {[%clk 0:02:51.4]} 11.
axb3 {[%clk 0:02:48.7]} 11... O-O {[%clk 0:02:51.2]} 12. h3 {[%clk 0:02:44]}
12... a6 {[%clk 0:02:44.7]} 13. Bf4 {[%clk 0:02:34.3]} 13... Bf5 {[%clk
0:02:43.3]} 14. c3 {[%clk 0:02:32.4]} 14... Rc8 {[%clk 0:02:41.6]} 15. Qd2
{[%clk 0:02:29.5]} 15... Be4 {[%clk 0:02:39.1]} 16. Rfe1 {[%clk 0:02:08.8]}
16... Re8 {[%clk 0:02:36.4]} 17. Ne5 {[%clk 0:01:56.4]} 17... Bxg2 {[%clk
0:02:30]} 18. Kxg2 {[%clk 0:01:57.3]} 18... Nxe5 {[%clk 0:02:29.7]} 19. Rxe5
{[%clk 0:01:50.7]} 19... Bf6 {[%clk 0:02:24.3]} 20. Rxe8+ {[%clk 0:01:47.9]}
20... Qxe8 {[%clk 0:02:24]} 21. Re1 {[%clk 0:01:48.8]} 21... Qb5 {[%clk
0:02:17.3]} 22. b4 {[%clk 0:01:17.9]} 22... Re8 {[%clk 0:02:14.3]} 23. Be5
{[%clk 0:01:07.5]} 23... Bxe5 {[%clk 0:02:08.1]} 24. dxe5 {[%clk 0:01:04.5]}
24... Qc4 {[%clk 0:02:04]} 25. h4 {[%clk 0:01:00.6]} 25... h6 {[%clk 0:01:48.7]}
26. Qe3 {[%clk 0:00:44.1]} 26... Re6 {[%clk 0:01:42.6]} 27. Qf3 {[%clk
0:00:29.4]} 27... b6 {[%clk 0:01:33.8]} 28. h5 {[%clk 0:00:25.2]} 28... Rc6
{[%clk 0:01:09.6]} 29. Re3 {[%clk 0:00:19.5]} 29... a5 {[%clk 0:01:07.4]} 30.
bxa5 {[%clk 0:00:20.4]} 30... bxa5 {[%clk 0:01:07.9]} 31. Qf5 {[%clk 0:00:17.7]}
31... Re6 {[%clk 0:00:54.6]} 32. Qb1 {[%clk 0:00:11.9]} 32... a4 {[%clk
0:00:50]} 33. Qb8+ {[%clk 0:00:11.5]} 33... Kh7 {[%clk 0:00:50.4]} 34. Qa7
{[%clk 0:00:12.1]} 34... Kg8 {[%clk 0:00:46]} 35. Rf3 {[%clk 0:00:11.7]} 35...
f6 {[%clk 0:00:40.5]} 36. Qb8+ {[%clk 0:00:04.7]} 36... Kf7 {[%clk 0:00:31.1]}
37. Qb7+ {[%clk 0:00:04.5]} 37... Re7 {[%clk 0:00:30.8]} 38. e6+ {[%clk
0:00:04]} 38... Kf8 {[%clk 0:00:24.3]} 39. Qb8+ {[%clk 0:00:03.9]} 39... Re8
{[%clk 0:00:24.7]} 40. Qb7 {[%clk 0:00:01.6]} 40... Re7 {[%clk 0:00:21.5]} 41.
Qb8+ {[%clk 0:00:01.6]} 41... Re8 {[%clk 0:00:22]} 42. Qb1 {[%clk 0:00:02.2]}
42... Rxe6 {[%clk 0:00:20.2]} 43. Qh7 {[%clk 0:00:02.8]} 43... Qe4 {[%clk
0:00:20]} 44. Qh8+ {[%clk 0:00:02.7]} 44... Kf7 {[%clk 0:00:20.4]} 45. Qa8
{[%clk 0:00:01.4]} 45... d4 {[%clk 0:00:19.9]} 0-1

[Event "Early-Titled-Tuesday-Blitz-October-17-2023"]
[Site "Chess.com"]
[Date "2023.10.17"]
[Round "4"]
[White "VincentKeymer"]
[Black "Nuvas"]
[Result "0-1"]
[WhiteElo "3080"]
[BlackElo "2832"]
[TimeControl "180+1"]
[EndTime "8:41:37 PDT"]
[Termination "Nuvas won by resignation"]

1. Nf3 {[%clk 0:03:00.9]} 1... d5 {[%clk 0:03:00]} 2. e3 {[%clk 0:03:01.1]} 2...
Nf6 {[%clk 0:02:59.9]} 3. c4 {[%clk 0:03:01.4]} 3... e6 {[%clk 0:02:59]} 4. Nc3
{[%clk 0:03:02.1]} 4... c5 {[%clk 0:02:56.9]} 5. cxd5 {[%clk 0:03:02.2]} 5...
exd5 {[%clk 0:02:57.3]} 6. d4 {[%clk 0:03:02.4]} 6... Nc6 {[%clk 0:02:56.7]} 7.
Bb5 {[%clk 0:03:02.5]} 7... Bd7 {[%clk 0:02:48.4]} 8. dxc5 {[%clk 0:03:02.1]}
8... Bxc5 {[%clk 0:02:43.2]} 9. O-O {[%clk 0:03:00.8]} 9... a6 {[%clk
0:02:41.7]} 10. Ba4 {[%clk 0:02:54]} 10... b5 {[%clk 0:02:27.8]} 11. Bb3 {[%clk
0:02:53.2]} 11... Be6 {[%clk 0:02:28.1]} 12. Ng5 {[%clk 0:02:29.8]} 12... O-O
{[%clk 0:02:20]} 13. Nxe6 {[%clk 0:02:29.6]} 13... fxe6 {[%clk 0:02:20.2]} 14.
Ne2 {[%clk 0:02:20.7]} 14... Rc8 {[%clk 0:02:15.4]} 15. Ng3 {[%clk 0:02:16.7]}
15... Na5 {[%clk 0:02:09.8]} 16. Bc2 {[%clk 0:02:14.2]} 16... Qc7 {[%clk
0:02:05.3]} 17. Bd3 {[%clk 0:02:10.5]} 17... Nc4 {[%clk 0:02:05.4]} 18. b3
{[%clk 0:02:06.7]} 18... Ne5 {[%clk 0:01:53]} 19. Be2 {[%clk 0:02:05.4]} 19...
Bd6 {[%clk 0:01:39.3]} 20. Bb2 {[%clk 0:02:04.3]} 20... Ng6 {[%clk 0:01:38]} 21.
a4 {[%clk 0:02:03.9]} 21... Qb7 {[%clk 0:01:26.7]} 22. axb5 {[%clk 0:01:41.2]}
22... axb5 {[%clk 0:01:27.6]} 23. Qd3 {[%clk 0:01:41.6]} 23... b4 {[%clk
0:01:22.3]} 24. f4 {[%clk 0:01:41.3]} 24... Bc5 {[%clk 0:01:08.4]} 25. Kh1
{[%clk 0:01:38]} 25... Ra8 {[%clk 0:01:05.9]} 26. Rxa8 {[%clk 0:01:27.8]} 26...
Qxa8 {[%clk 0:00:58.7]} 27. Nh5 {[%clk 0:00:49.1]} 27... Nxh5 {[%clk 0:00:48.9]}
28. Bxh5 {[%clk 0:00:50]} 28... Ne7 {[%clk 0:00:49.4]} 29. Bf3 {[%clk
0:00:38.3]} 29... Qa7 {[%clk 0:00:45.5]} 30. Bg4 {[%clk 0:00:31.6]} 30... Nf5
{[%clk 0:00:33.8]} 31. e4 {[%clk 0:00:32]} 31... Ne3 {[%clk 0:00:26.3]} 32.
Bxe6+ {[%clk 0:00:31.1]} 32... Kh8 {[%clk 0:00:26.7]} 33. Re1 {[%clk 0:00:23.5]}
33... Qa2 {[%clk 0:00:20.2]} 34. Re2 {[%clk 0:00:13.9]} 34... Qa7 {[%clk
0:00:13.6]} 35. f5 {[%clk 0:00:09.8]} 35... d4 {[%clk 0:00:12.8]} 36. h3 {[%clk
0:00:09]} 36... Qc7 {[%clk 0:00:10.3]} 37. Bxd4 {[%clk 0:00:08.2]} 37... Rd8
{[%clk 0:00:08.8]} 38. Qxe3 {[%clk 0:00:04.9]} 38... Bxd4 {[%clk 0:00:09.1]} 39.
Qg5 {[%clk 0:00:04.1]} 39... Bf6 {[%clk 0:00:07.9]} 40. Qd2 {[%clk 0:00:03.2]}
40... Rxd2 {[%clk 0:00:07.5]} 41. Rxd2 {[%clk 0:00:04.1]} 41... Qc1+ {[%clk
0:00:07.8]} 0-1

[Event "Early-Titled-Tuesday-Blitz-October-17-2023"]
[Site "Chess.com"]
[Date "2023.10.17"]
[Round "4"]
[White "sterpfi"]
[Black "destruyeabuelitas"]
[Result "0-1"]
[WhiteElo "2161"]
[BlackElo "2358"]
[TimeControl "180+1"]
[EndTime "8:41:38 PDT"]
[Termination "destruyeabuelitas won on time"]

1. e4 {[%clk 0:03:00.9]} 1... e5 {[%clk 0:02:59.1]} 2. Nf3 {[%clk 0:02:58.7]}
2... Nc6 {[%clk 0:02:59.4]} 3. Nc3 {[%clk 0:02:59.2]} 3... Be7 {[%clk
0:02:59.5]} 4. d4 {[%clk 0:02:55.1]} 4... d6 {[%clk 0:02:59]} 5. Bb5 {[%clk
0:02:53.6]} 5... exd4 {[%clk 0:02:56.3]} 6. Nxd4 {[%clk 0:02:53.2]} 6... Bd7
{[%clk 0:02:56.6]} 7. Bxc6 {[%clk 0:02:51.9]} 7... bxc6 {[%clk 0:02:55.4]} 8.
Qf3 {[%clk 0:02:50.3]} 8... Bf6 {[%clk 0:02:51.8]} 9. Nf5 {[%clk 0:02:47.1]}
9... g6 {[%clk 0:02:47.7]} 10. Ng3 {[%clk 0:02:44.2]} 10... Qe7 {[%clk
0:02:44.5]} 11. O-O {[%clk 0:02:42.3]} 11... h5 {[%clk 0:02:38.4]} 12. Re1
{[%clk 0:02:28.3]} 12... Bg4 {[%clk 0:02:26.2]} 13. Qd3 {[%clk 0:02:19]} 13...
h4 {[%clk 0:02:22.8]} 14. Nf1 {[%clk 0:02:18]} 14... h3 {[%clk 0:02:22.2]} 15.
g3 {[%clk 0:02:14.2]} 15... Bd7 {[%clk 0:02:09.5]} 16. Bf4 {[%clk 0:02:08]}
16... g5 {[%clk 0:02:05.2]} 17. Bd2 {[%clk 0:01:56.2]} 17... Nh6 {[%clk
0:01:41.9]} 18. Ne3 {[%clk 0:01:42.2]} 18... O-O {[%clk 0:01:23.5]} 19. Nf5
{[%clk 0:01:35.4]} 19... Bxf5 {[%clk 0:01:23.2]} 20. exf5 {[%clk 0:01:36.3]}
20... Qd7 {[%clk 0:01:23.8]} 21. Ne4 {[%clk 0:01:18.6]} 21... Qxf5 {[%clk
0:01:00.6]} 22. Nxf6+ {[%clk 0:00:49.1]} 22... Qxf6 {[%clk 0:00:56]} 23. Bc3
{[%clk 0:00:49.5]} 23... Qf5 {[%clk 0:00:44.8]} 24. Qd4 {[%clk 0:00:49.2]} 24...
f6 {[%clk 0:00:44.1]} 25. Qc4+ {[%clk 0:00:40.3]} 25... Qd5 {[%clk 0:00:43.8]}
26. Qxd5+ {[%clk 0:00:39.1]} 26... cxd5 {[%clk 0:00:44.7]} 27. Re7 {[%clk
0:00:38.9]} 27... Rf7 {[%clk 0:00:43.2]} 28. Rae1 {[%clk 0:00:38.3]} 28... Raf8
{[%clk 0:00:42.4]} 29. Ba5 {[%clk 0:00:28.1]} 29... c6 {[%clk 0:00:29.1]} 30.
Bc7 {[%clk 0:00:27.6]} 30... Nf5 {[%clk 0:00:29]} 31. Rxf7 {[%clk 0:00:18.3]}
31... Rxf7 {[%clk 0:00:29.9]} 32. Ba5 {[%clk 0:00:18.2]} 32... Nd4 {[%clk
0:00:30.1]} 33. Kf1 {[%clk 0:00:14]} 33... Rb7 {[%clk 0:00:29.3]} 34. Bc3 {[%clk
0:00:12.9]} 34... Nf3 {[%clk 0:00:28.4]} 35. Re6 {[%clk 0:00:12.2]} 35... d4
{[%clk 0:00:27.7]} 36. Be1 {[%clk 0:00:09.1]} 36... Kf7 {[%clk 0:00:26.7]} 37.
Rxd6 {[%clk 0:00:09.1]} 37... Rxb2 {[%clk 0:00:25]} 38. Rxc6 {[%clk 0:00:09.6]}
38... Rb1 {[%clk 0:00:25.5]} 39. Ke2 {[%clk 0:00:07.9]} 39... Nxe1 {[%clk
0:00:24.8]} 40. Rc7+ {[%clk 0:00:07.2]} 40... Kg6 {[%clk 0:00:24.7]} 41. Rxa7
{[%clk 0:00:07.6]} 41... Nxc2 {[%clk 0:00:23.2]} 42. a4 {[%clk 0:00:07.3]} 42...
Ra1 {[%clk 0:00:22.9]} 43. a5 {[%clk 0:00:07.5]} 43... Nb4 {[%clk 0:00:23.2]}
44. f4 {[%clk 0:00:04.4]} 44... d3+ {[%clk 0:00:23.3]} 45. Kd2 {[%clk
0:00:04.4]} 45... Ra2+ {[%clk 0:00:23.8]} 46. Kc3 {[%clk 0:00:03.5]} 46... d2
{[%clk 0:00:24.7]} 47. Rd7 {[%clk 0:00:03.2]} 47... Na6 {[%clk 0:00:20.1]} 48.
Rxd2 {[%clk 0:00:02.5]} 48... Rxa5 {[%clk 0:00:18.8]} 0-1

[Event "Early-Titled-Tuesday-Blitz-October-17-2023"]
[Site "Chess.com"]
[Date "2023.10.17"]
[Round "4"]
[White "DarZay"]
[Black "wanyaland"]
[Result "1-0"]
[WhiteElo "2230"]
[BlackElo "2407"]
[TimeControl "180+1"]
[EndTime "8:41:39 PDT"]
[Termination "DarZay won on time"]

1. e4 {[%clk 0:02:23]} 1... c5 {[%clk 0:02:58.9]} 2. Nf3 {[%clk 0:02:22]} 2...
e6 {[%clk 0:02:58.8]} 3. d4 {[%clk 0:02:21.9]} 3... cxd4 {[%clk 0:02:59.2]} 4.
Nxd4 {[%clk 0:02:22.1]} 4... Nc6 {[%clk 0:02:59.4]} 5. Nc3 {[%clk 0:02:21]} 5...
Qc7 {[%clk 0:02:58.7]} 6. Be3 {[%clk 0:02:20.1]} 6... a6 {[%clk 0:02:57.2]} 7.
Be2 {[%clk 0:02:20.1]} 7... Nf6 {[%clk 0:02:56.6]} 8. O-O {[%clk 0:02:19.9]}
8... b5 {[%clk 0:02:52.1]} 9. a3 {[%clk 0:02:18.1]} 9... Bb7 {[%clk 0:02:51.1]}
10. f4 {[%clk 0:02:18.1]} 10... d6 {[%clk 0:02:43.2]} 11. Bf3 {[%clk 0:02:12.5]}
11... Rc8 {[%clk 0:02:43]} 12. Qd2 {[%clk 0:02:01.2]} 12... Na5 {[%clk
0:02:42.1]} 13. e5 {[%clk 0:01:50.6]} 13... Nc4 {[%clk 0:02:40.9]} 14. Qe2
{[%clk 0:01:49.7]} 14... dxe5 {[%clk 0:02:38.4]} 15. Ndxb5 {[%clk 0:01:26.7]}
15... axb5 {[%clk 0:02:35.3]} 16. Nxb5 {[%clk 0:01:26.9]} 16... Qb8 {[%clk
0:02:30]} 17. Na7 {[%clk 0:01:23.5]} 17... Bxf3 {[%clk 0:02:21]} 18. Rxf3 {[%clk
0:01:15.5]} 18... Nxe3 {[%clk 0:02:13.8]} 19. Nxc8 {[%clk 0:01:12.9]} 19... exf4
{[%clk 0:02:07.9]} 20. Qa6 {[%clk 0:01:06.4]} 20... Bc5 {[%clk 0:01:57.5]} 21.
b4 {[%clk 0:01:05.8]} 21... Bd4 {[%clk 0:01:47.2]} 22. c3 {[%clk 0:01:05.1]}
22... Bxc3 {[%clk 0:01:20.7]} 23. Qc6+ {[%clk 0:00:52.3]} 23... Kd8 {[%clk
0:01:14.7]} 24. Qxc3 {[%clk 0:00:14.3]} 24... Qxc8 {[%clk 0:01:14.1]} 25. Qd4+
{[%clk 0:00:14.5]} 25... Ke7 {[%clk 0:01:00.6]} 26. Rxf4 {[%clk 0:00:14]} 26...
Nc2 {[%clk 0:00:58]} 27. Qa7+ {[%clk 0:00:11.5]} 27... Nd7 {[%clk 0:00:38.8]}
28. Rc1 {[%clk 0:00:11]} 28... Qc3 {[%clk 0:00:31.9]} 29. Qf2 {[%clk 0:00:10.4]}
29... Rc8 {[%clk 0:00:25.4]} 30. Rxf7+ {[%clk 0:00:09.5]} 30... Ke8 {[%clk
0:00:24.7]} 31. Rf3 {[%clk 0:00:05.4]} 31... Qb2 {[%clk 0:00:19.4]} 32. Re1
{[%clk 0:00:03.6]} 32... e5 {[%clk 0:00:14.8]} 33. Rfe3 {[%clk 0:00:02.4]} 33...
Rc6 {[%clk 0:00:04.3]} 34. Rxe5+ {[%clk 0:00:02.3]} 1-0